[Event "Czech Open-Rapid 2022"]
[Site "Pardubice"]
[Date "2022.07.21"]
[Round "5.6"]
[White "Luch, Michal"]
[Black "Freisler, Pavel"]
[Result "1/2-1/2"]
[ECO "E37"]
[WhiteElo "2375"]
[BlackElo "2256"]
[Annotator "TA"]
[PlyCount "142"]
[EventDate "2022.07.20"]
[EventType "swiss"]
[EventCountry "CZE"]
[SourceTitle "playchess.com"]
[Source "ChessBase"]
[SourceQuality "1"]
[TimeControl "1200+10"]

{[%evp 20,142,20,18,27,8,9,5,12,7,13,22,18,12,8,0,2,0,0,0,11,1,53,43,48,10,40,31,98,91,91,82,85,18,69,43,48,32,66,32,126,27,29,5,8,7,7,7,12,4,12,4,4,7,8,0,0,0,0,-17,-18,-88,-88,-83,-77,-43,-45,-154,0,0,0,0,0,-389,-385,-463,-459,-449,-387,-380,-329,-1770,-1733,-1685,-1421,-29977,-29979,-29979,-29980,-29979,-29981,-29980,-29979,-29979,-29980,-29980,-29981,-29981,-29982,-29982,-29983,-29983,-29981,-29981,-29982,-29981,-29981,-29981,0,-29979,0,0,0,0,0,0,0,0,0,0,0,0,0,0,0]} 1. d4 {[%emt 0:00:01]} Nf6 {[%emt 0:00:01]} 2. c4 {[%emt 0:00:01]} e6 {[%emt 0:00:07]} 3. Nc3 {[%emt 0:00:01]} Bb4 {[%emt 0:00:01]} 4. Qc2 {[%emt 0:00:01]} d5 {[%emt 0:00:09]} 5. a3 {[%emt 0:00:02]} Bxc3+ {[%emt 0:00:02]} 6. Qxc3 {[%emt 0:00:01]} Ne4 {[%emt 0:00:06]} 7. Qc2 {[%emt 0:00:10]} c5 {[%emt 0:00:01]} 8. dxc5 {[%emt 0:00:40]} Nc6 {[%emt 0:00:02]} 9. e3 {[%emt 0:00:11]} Qa5+ {[%emt 0:00:40]} 10. Bd2 {[%emt 0:00:01]} Nxd2 {[%emt 0:00:16]} 11. Qxd2 {[%emt 0:00:03]} dxc4 {[%emt 0:00:10] E37: Nimzo-Indian: Classical: 4...d5 5 a3 Bxc3+ 6 Qxc3 Ne4.} 12. Bxc4 {[%emt 0:00:05] Threatening b4.} Qxc5 {[%emt 0:00:04]} 13. Rc1 {[%emt 0:00:02][%cal Oc4e6]} Qe7 {[%emt 0:00:03]} 14. Nf3 {[%emt 0:02:23]} O-O {[%emt 0:00:05]} 15. O-O {[%emt 0:00:16]} Rd8 {[%emt 0:01:27]} 16. Qc2 {[%emt 0:05:45]} Bd7 {[%emt 0:00:11] [#]} 17. Ba2 $146 {[%emt 0:01:10]} ({Predecessor:} 17. Qe4 Be8 18. b4 a6 19. h3 {½-½ (19) Martinovic,S (2564)-Palac,M (2557) Tuzla 2019}) 17... Rac8 {[%emt 0:00:06][%cal Oc6d4]} 18. Qe4 {[%emt 0:00:18] Prevents Nd4.} Qf6 {[%emt 0:02:25]} 19. Rc2 {[%emt 0:02:33]} e5 {[%emt 0:01:07] Threatens to win with ...Bf5.} 20. g4 {[%emt 0:00:55] Prevents Bf5.} Be6 {[%emt 0:04:16] Inhibits Bd5.} (20... Nd4 $11 21. Rxc8 (21. Nxd4 exd4 22. Rxc8 Bxc8 $11) 21... Nxf3+ 22. Qxf3 Rxc8 23. Qxf6 gxf6) 21. Bxe6 $14 {[%emt 0:00:26]} Qxe6 {[%emt 0:00:01]} ({Don't take} 21... fxe6 22. Rc5 $16) 22. Rfc1 {[%emt 0:01:33]} (22. Ng5 $5 {[%cal Re4h7]} Qg6 23. Qxg6 hxg6 24. Rfc1 $11) 22... Qd5 {[%emt 0:01:14]} 23. Ng5 {[%emt 0:02:03]} g6 {[%emt 0:00:57]} (23... h6 $14 24. Qxd5 Rxd5) 24. Qxd5 $16 {[%emt 0:00:08]} Rxd5 {[%emt 0:00:01]} 25. Ne4 {[%emt 0:00:01] Nf6+ is the strong threat.} Kg7 {[%emt 0:01:32] Against Nf6} 26. Nc5 {[%emt 0:00:15]} ({White should play} 26. g5 $16) 26... Rb8 {[%emt 0:00:05]} (26... Rc7 $11) 27. b4 {[%emt 0:00:19]} Nd8 {[%emt 0:01:01]} 28. Kf1 {[%emt 0:01:22]} Kf8 {[%emt 0:00:37]} 29. Ne4 {[%emt 0:01:15] White is more active.} Ke7 {[%emt 0:00:56] Prevents Nf6.} (29... Ne6 $14) 30. Ke2 {[%emt 0:01:08]} (30. Rc7+ $16 Rd7 31. R7c5) 30... Ne6 $11 {[%emt 0:00:23]} 31. Nc5 {[%emt 0:01:07]} (31. g5 {keeps more tension.} Rh8 32. Rc8 Rdd8 33. Rxd8 Rxd8 34. h4) 31... Nxc5 {[%emt 0:01:00]} 32. Rxc5 {[%emt 0:00:01]} Rxc5 {[%emt 0:00:01]} 33. Rxc5 {[%emt 0:00:02][%mdl 4096] Endgame KR-KR} Kd6 {[%emt 0:00:00]} 34. Kd3 {[%emt 0:00:30]} b6 {[%emt 0:00:04]} 35. Rc1 {[%emt 0:00:03]} f5 {[%emt 0:01:07]} 36. gxf5 {[%emt 0:00:02]} gxf5 {[%emt 0:00:01]} 37. Rg1 Rb7 {Prevents Rg7.} 38. Rg5 {[%emt 0:00:56]} e4+ {[%emt 0:00:21]} 39. Kd4 {[%emt 0:00:04]} Ke6 {[%emt 0:00:01]} 40. Rh5 {[%emt 0:00:22]} (40. Kc3 $11 {remains equal.}) 40... Rd7+ $17 {[%emt 0:00:12]} 41. Kc4 {[%emt 0:00:04]} Rd2 $1 {[%emt 0:01:50]} 42. Rxh7 {[%emt 0:00:01]} Rxf2 {[%emt 0:00:02]} 43. Rxa7 {[%emt 0:00:20] [#]} (43. a4 $15) 43... Re2 $2 {[%emt 0:00:19]} (43... Rc2+ $1 $17 44. Kd4 Rd2+ 45. Kc4 Rd3) 44. Rb7 {[%emt 0:00:22]} Rxe3 {[%emt 0:00:03]} 45. Rxb6+ {[%emt 0:00:01]} Ke5 {[%emt 0:00:04]} 46. a4 {[%emt 0:00:04][%mdl 8192]} (46. Rb8 $1 $11 {and White has nothing to worry.}) 46... Ra3 $19 {[%emt 0:00:05]} 47. a5 {[%emt 0:00:08] [#]} e3 $1 {[%emt 0:00:01] aiming for ...e2.} 48. Rb8 {[%emt 0:00:09]} Ke4 {[%emt 0:00:11]} 49. Re8+ {[%emt 0:00:09]} Kf3 {[%emt 0:00:01]} 50. Kb5 $2 {[%emt 0:00:15]} (50. b5 Ra4+ 51. Kd5 (51. Kd3 $2 Re4 $19) 51... Rxa5 52. Kc6) 50... e2 {[%emt 0:00:04]} 51. a6 {[%emt 0:00:01]} Kf2 {[%emt 0:00:25]} 52. h4 {[%emt 0:00:22]} e1=Q {[%emt 0:00:04]} 53. Rxe1 {[%emt 0:00:02]} Kxe1 {[%emt 0:00:01] KR-K3P} 54. h5 {[%emt 0:00:02]} f4 {[%emt 0:00:32]} 55. h6 {[%emt 0:00:08]} f3 {[%emt 0:00:01]} 56. h7 {[%emt 0:00:10]} f2 57. h8=Q {[%emt 0:00:03]} f1=Q+ {[%emt 0:00:03]} 58. Kc5 {[%emt 0:00:09]} Qf2+ {[%emt 0:00:51]} 59. Qd4 {[%emt 0:00:36]} Rc3+ {[%emt 0:00:16]} 60. Kd5 {[%emt 0:00:00]} Qf7+ {[%emt 0:00:01]} 61. Ke5 {[%emt 0:00:31]} Qc7+ {[%emt 0:00:57]} 62. Kd5 {[%emt 0:00:08]} Qc6+ {[%emt 0:01:51]} 63. Ke5 {[%emt 0:00:01]} Qc7+ {[%emt 0:00:53]} 64. Kd5 {[%emt 0:00:01]} Rc6 $2 {[%emt 0:00:11]} (64... Qd7+ {mates} 65. Ke5 Qb5+ 66. Kf6 Rc6+ 67. Ke7 Rc7+ 68. Kf6 Rc6+ 69. Ke7 Rc7+ 70. Kf6 Rc6+) 65. Qe5+ $11 {[%emt 0:00:36] The position is equal.} Qxe5+ {[%emt 0:00:05]} 66. Kxe5 {[%emt 0:00:01]} Rxa6 {[%emt 0:00:03] ( -> ...Rb6). KR-KP} 67. Kd5 {[%emt 0:00:01]} Kd2 {[%emt 0:00:04]} 68. b5 {[%emt 0:00:05][%cal Bb4b5,Bb5b6,Bb6b7][%mdl 32]} Rh6 {[%emt 0:00:56]} 69. Kc5 {[%emt 0:00:00]} Kc3 {[%emt 0:00:01]} 70. b6 {[%emt 0:00:01]} Kb3 {[%emt 0:00:05]} 71. b7 {[%emt 0:00:04]} Rh8 {[%emt 0:00:02] And White is the lucky defender.  Weighted Error Value: White=0.48/Black=0.21 (precise)} 1/2-1/2

[Event "Czech Open-Rapid 2022"]
[Site "Pardubice"]
[Date "2022.07.21"]
[Round "5.8"]
[White "Jirovsky, Milos"]
[Black "Aradhya, Garg"]
[Result "1/2-1/2"]
[ECO "A09"]
[WhiteElo "2458"]
[BlackElo "2229"]
[Annotator "TA"]
[PlyCount "103"]
[EventDate "2022.07.20"]
[EventType "swiss"]
[EventCountry "CZE"]
[SourceTitle "playchess.com"]
[Source "ChessBase"]
[SourceQuality "1"]
[TimeControl "1200+10"]

{[%evp 9,102,-20,-20,-21,-24,-22,-20,-20,-11,-20,-42,-21,86,81,75,98,88,85,85,93,101,84,77,72,87,85,72,80,80,89,80,75,88,87,87,49,60,52,51,61,65,30,36,31,37,0,0,0,0,0,0,0,0,0,0,0,0,0,0,0,0,0,2,0,0,0,0,0,0,0,0,0,0,0,0,0,0,0,0,0,0,0,0,0,0,0,0,0,0,0,0,0,0,0,0]} 1. Nf3 {[%emt 0:00:01]} d5 {[%emt 0:00:01]} 2. c4 {[%emt 0:00:01]} d4 {[%emt 0:00:01]} 3. b4 {[%emt 0:00:06]} c5 {[%emt 0:00:07]} 4. bxc5 {[%emt 0:00:03]} Nc6 {[%emt 0:00:01]} 5. g3 {[%emt 0:00:13]} e5 {[%emt 0:00:01]} 6. d3 {[%emt 0:00:01] A09: Réti Opening: 1 Nf3 d5 2 c4.} Bxc5 {[%emt 0:00:03]} 7. Bg2 {[%emt 0:00:01]} Nf6 {[%emt 0:00:06][%cal Bg8f6,Bf6e4,Be4c3][%mdl 32]} 8. O-O {[%emt 0:00:03]} O-O {[%emt 0:00:07]} 9. Ba3 {[%emt 0:00:03]} Bxa3 {[%emt 0:01:46]} 10. Nxa3 {[%emt 0:00:01]} e4 {[%emt 0:00:01] [#]} (10... Bf5 $11) 11. dxe4 $146 {[%emt 0:01:24]} ({Predecessor:} 11. Ne1 Re8 12. Qa4 e3 13. f3 h5 14. Qb5 Re5 15. Qb2 h4 16. f4 Rh5 17. Nf3 hxg3 18. hxg3 {1-0 (41) Bogumil,T (2182)-Baches Garcia,G (2329) Chess.com INT 2020}) 11... Nxe4 {[%emt 0:00:02] [#]} 12. Nb5 $1 {[%emt 0:00:02]} Nc3 {[%emt 0:01:29]} 13. Qd2 {[%emt 0:01:15]} Re8 {[%emt 0:00:16]} 14. Rfe1 {[%emt 0:00:56]} Ne4 {[%emt 0:01:03]} 15. Qb2 {[%emt 0:01:38][%cal Rf3d4]} Qb6 {[%emt 0:00:50] [#] White must now prevent ...a6.} 16. Rab1 $1 {[%emt 0:00:36][%cal Rb5d4,Ba1b1,Bb1b2,Bb2c2,Bc2c3,Bc3a3][%mdl 32]} ({Of course not} 16. Nfxd4 a6 $11) 16... Nc3 {[%emt 0:00:49]} 17. Nxc3 {[%emt 0:00:17]} Qxb2 {[%emt 0:00:04]} 18. Rxb2 {[%emt 0:00:01]} dxc3 {[%emt 0:00:01]} 19. Rc2 {[%emt 0:00:12]} Be6 {[%emt 0:01:17]} 20. Rxc3 {[%emt 0:00:10]} Rad8 {[%emt 0:00:01][%cal Ba8d8,Bd8d2,Bd2c2][%mdl 32]} 21. Ng5 {[%emt 0:00:35]} Rd2 {[%emt 0:00:30]} 22. Bxc6 {[%emt 0:00:45]} bxc6 {[%emt 0:00:02]} 23. Nxe6 {[%emt 0:00:17]} Rxe6 {[%emt 0:00:24][%mdl 4096] Endgame KRR-KRR} 24. Ra3 {[%emt 0:00:04]} Re7 {[%emt 0:00:02]} 25. Kf1 {[%emt 0:00:17]} Rc2 {[%emt 0:00:01]} 26. Ra4 {[%emt 0:00:08]} h5 {[%emt 0:00:08]} 27. e3 {[%emt 0:00:04]} Rd7 {[%emt 0:00:01] The position is equal.} 28. Kg2 {[%emt 0:01:53]} Rdd2 {[%emt 0:00:03][%csl LRa2,LRf2]} 29. Rf1 {[%emt 0:00:01]} Rxa2 {[%emt 0:00:01]} 30. Rxa2 {[%emt 0:00:01]} Rxa2 $11 {[%emt 0:00:02] KR-KR} 31. Rd1 {[%emt 0:00:02]} Rc2 {[%emt 0:00:21]} 32. Rd8+ {[%emt 0:00:06]} Kh7 {[%emt 0:00:01]} 33. Rd7 {[%emt 0:00:01][%csl LRa7,LRf7]} f6 {[%emt 0:00:13]} 34. Rxa7 {[%emt 0:00:03]} Rxc4 {[%emt 0:00:01]} 35. h4 {[%emt 0:00:03]} c5 {[%emt 0:00:06]} 36. Rc7 {[%emt 0:00:05]} Rc2 {[%emt 0:00:12]} 37. Kf3 {[%emt 0:00:01]} f5 {[%emt 0:00:30]} 38. Rc6 {[%emt 0:00:08]} g6 {[%emt 0:00:09]} 39. Kf4 {[%emt 0:00:39] Threatens to win with Kg5.} Rxf2+ {[%emt 0:00:16]} 40. Kg5 {[%emt 0:00:01] Strongly threatening Rc7+.} Rf3 {[%emt 0:00:02]} 41. Rc7+ {[%emt 0:00:01][%mdl 64] Deflection} Kg8 {[%emt 0:00:03]} 42. Kxg6 {[%emt 0:01:08][%cal Rc7c8]} Rxg3+ {[%emt 0:00:05]} 43. Kxh5 {[%emt 0:00:01]} Rxe3 {[%emt 0:00:21]} 44. Rxc5 {[%emt 0:00:02]} Rg3 {[%emt 0:00:13]} 45. Rxf5 {[%emt 0:00:03]} Rg7 {[%emt 0:00:07]} 46. Rg5 {[%emt 0:00:08]} Rxg5+ {[%emt 0:00:22]} 47. hxg5 {[%emt 0:00:02][%cal Bh4g5,Bg5g6,Bg6g7][%mdl 32] White wants to mate with Kg6. KP-K} Kh7 {[%emt 0:00:19]} 48. g6+ {[%emt 0:00:01]} Kg7 {[%emt 0:00:01]} 49. Kg5 {[%emt 0:00:01]} Kg8 {[%emt 0:00:01]} 50. Kf6 {[%emt 0:00:01] g7 would kill now.} Kf8 {[%emt 0:00:01]} 51. g7+ {[%emt 0:00:01]} Kg8 {[%emt 0:00:01]} 52. Kg6 {Weighted Error Value: White=0.03 (flawless) /Black=0.06 (flawless)} 1/2-1/2

[Event "Czech Open-Rapid 2022"]
[Site "Pardubice"]
[Date "2022.07.21"]
[Round "5.9"]
[White "Stocek, Jiri"]
[Black "Bertram, Karsten"]
[Result "1-0"]
[ECO "A25"]
[WhiteElo "2548"]
[BlackElo "2062"]
[Annotator "TA"]
[PlyCount "28"]
[EventDate "2022.07.20"]
[EventType "swiss"]
[EventCountry "CZE"]
[SourceTitle "playchess.com"]
[Source "ChessBase"]
[SourceQuality "1"]
[TimeControl "1200+10"]

{[%evp 9,28,29,57,71,94,86,148,130,162,159,168,162,264,281,253,254,500,516,499,475,601]} 1. c4 {[%emt 0:00:02]} e5 {[%emt 0:00:01]} 2. Nc3 {[%emt 0:00:03]} Nc6 {[%emt 0:00:04]} 3. e3 {[%emt 0:00:03][%cal Be2e3,Be3d4,Bd4d5][%mdl 32]} d6 {[%emt 0:00:18]} 4. Nf3 {[%emt 0:00:05]} Bg4 {[%emt 0:00:12]} 5. h3 {[%emt 0:00:29] [#]} Bf5 $146 {[%emt 0:00:14]} ({Predecessor:} 5... Bh5 6. Be2 Bg6 7. d4 e4 8. Nd2 f5 9. g4 Nf6 10. Nf1 h5 11. gxf5 Bxf5 12. Ng3 {0-1 (43) Bischoff,K (2519)-Blatny,P (2420) Austria 2013}) 6. d4 {[%emt 0:00:52] A25: English Opening vs King's Indian with ...Nc6 but without early d3.} exd4 {[%emt 0:01:39]} 7. exd4 {[%emt 0:00:03]} Qd7 {[%emt 0:00:09]} (7... Be7 $142) 8. Be3 {[%emt 0:00:27] White is clearly better.} Nf6 {[%emt 0:00:10]} 9. d5 {[%emt 0:00:37]} Nb4 {[%emt 0:00:25]} 10. Nd4 {[%emt 0:02:02] Prevents Nc2+.} Bg6 {[%emt 0:00:36]} (10... c5 $142 11. Nxf5 Qxf5) 11. a3 $18 {[%emt 0:00:16]} Na6 {[%emt 0:00:12]} 12. c5 {[%emt 0:00:34]} Nxd5 $2 {[%emt 0:01:53] [#]} (12... Nb8 {was called for.} 13. Qf3 (13. Bb5 c6 $16) 13... a6) 13. c6 {[%emt 0:00:33]} bxc6 {[%emt 0:00:43]} 14. Nxd5 {[%emt 0:00:08]} ({Less strong is} 14. Bxa6 Nxe3 15. fxe3 Rb8 $18) 14... Nc5 {[%emt 0:00:13] Black got outplayed after the opening.  Weighted Error Value: White=0.02 (flawless) /Black=0.66} 1-0

[Event "Czech Open-Rapid 2022"]
[Site "Pardubice"]
[Date "2022.07.21"]
[Round "5.10"]
[White "Neuman, Petr"]
[Black "Mojzis, Jaroslav"]
[Result "1-0"]
[ECO "E32"]
[WhiteElo "2378"]
[BlackElo "2108"]
[Annotator "TA"]
[PlyCount "113"]
[EventDate "2022.07.20"]
[EventType "swiss"]
[EventCountry "CZE"]
[SourceTitle "playchess.com"]
[Source "ChessBase"]
[SourceQuality "1"]
[TimeControl "1200+10"]

{[%evp 23,113,29,34,21,62,58,81,76,85,85,85,85,85,85,102,102,102,102,110,104,104,102,109,110,112,85,111,96,99,87,90,86,90,90,91,93,95,90,151,89,89,89,108,97,104,105,128,128,129,129,129,129,152,152,239,248,273,229,184,188,257,247,259,264,448,448,852,416,379,407,396,385,454,447,447,446,433,432,596,520,521,517,5577,4779,29987,29988,29997,29995,29995,29991,29996,475]} 1. d4 {[%emt 0:00:02]} Nf6 {[%emt 0:00:03]} 2. c4 {[%emt 0:00:02]} e6 {[%emt 0:00:02]} 3. Nc3 {[%emt 0:00:11]} Bb4 {[%emt 0:00:02]} 4. Qc2 {[%emt 0:00:02]} d6 {[%emt 0:00:42]} 5. a3 {[%emt 0:00:04]} Bxc3+ {[%emt 0:00:02]} 6. Qxc3 {[%emt 0:00:02]} Nbd7 {[%emt 0:00:12]} 7. b4 {[%emt 0:00:45]} O-O {[%emt 0:00:04]} 8. Bb2 {[%emt 0:00:03]} e5 {[%emt 0:00:11]} 9. e3 {[%emt 0:00:08]} Re8 {[%emt 0:00:18]} 10. Nf3 {[%emt 0:00:05]} Qe7 {[%emt 0:00:08]} 11. Be2 {[%emt 0:00:07]} b6 {[%emt 0:03:59]} 12. O-O {[%emt 0:00:19]} Bb7 {[%emt 0:00:09]} 13. d5 {[%emt 0:00:02] E32: Nimzo-Indian: Classical (4 Qc2): 4...0-0.} a5 {[%emt 0:02:11] [#]} 14. Nd2 $146 {[%emt 0:00:18]} ({Predecessor:} 14. Rfd1 Ra7 {0-1 (14) Zamora,S (1842)-Fineboim,I (2077) LSS email 2010}) 14... axb4 {[%emt 0:00:33]} 15. axb4 {[%emt 0:00:01] White is better.} Rxa1 {[%emt 0:00:03]} 16. Rxa1 {[%emt 0:00:01]} Ra8 {[%emt 0:00:02]} 17. Rxa8+ {[%emt 0:00:38]} Bxa8 {[%emt 0:00:01]} 18. e4 {[%emt 0:00:11]} Bb7 {[%emt 0:00:14]} 19. f3 {[%emt 0:00:03]} Qd8 {[%emt 0:00:14]} 20. Qa3 {[%emt 0:00:20]} Qa8 {[%emt 0:00:08]} 21. Qxa8+ {[%emt 0:00:06]} Bxa8 {[%emt 0:00:01]} 22. Nb1 {[%emt 0:00:12]} Kf8 {[%emt 0:00:39]} 23. Nc3 {[%emt 0:00:02]} Ke7 {[%emt 0:00:20]} 24. Nb5 {[%emt 0:00:04]} Kd8 {[%emt 0:01:53]} 25. Bd1 {[%emt 0:00:01] White is more active.} Bb7 {[%emt 0:00:06]} 26. Ba4 {[%emt 0:00:02]} Ba6 {[%emt 0:00:38]} 27. Kf2 {[%emt 0:00:02]} Bxb5 {[%emt 0:01:30]} 28. Bxb5 $16 {[%emt 0:00:01][%mdl 4096] Endgame KBB-KNN} Ke7 {[%emt 0:00:15]} 29. Bc1 {[%emt 0:00:05]} h6 {[%emt 0:00:42]} 30. Be3 {[%emt 0:00:05]} g5 {[%emt 0:00:24] [#]} (30... Nf8 $142) 31. Ba4 {[%emt 0:00:03]} (31. h4 $142 $1) 31... Nh5 {[%emt 0:00:30]} 32. g3 {[%emt 0:00:02]} Nhf6 {[%emt 0:00:15]} 33. Ke2 {[%emt 0:00:12]} Nh7 {[%emt 0:00:07]} 34. Kd3 {[%emt 0:00:07]} f6 {[%emt 0:00:25]} 35. Bd1 {[%emt 0:00:01]} Nhf8 {[%emt 0:00:04]} 36. Be2 {[%emt 0:00:02]} Ng6 {[%emt 0:00:03]} 37. Bf1 {[%emt 0:00:01]} Ngf8 {[%emt 0:01:20]} 38. Bh3 {[%emt 0:00:02]} Kd8 {[%emt 0:00:40]} (38... Ng6 $16 {might work better.} 39. Bf5 Nh8) 39. Bf5 $18 {[%emt 0:00:04]} Nb8 {[%emt 0:00:39]} 40. c5 {[%emt 0:00:18]} bxc5 {[%emt 0:00:10]} 41. bxc5 {[%emt 0:00:01] [#] aiming for c6.} dxc5 {[%emt 0:01:24]} (41... Nfd7 $142 42. c6 Nb6) 42. Bxc5 {[%emt 0:00:02]} Nfd7 {[%emt 0:00:05]} 43. Ba3 {[%emt 0:00:11]} h5 $2 {[%emt 0:01:12]} (43... Nb6 44. Bf8 h5) 44. h4 {[%emt 0:00:09]} c6 {[%emt 0:02:15]} (44... gxh4 $142 45. gxh4 c6) 45. Bg6 {[%emt 0:00:08]} (45. g4 $142) 45... cxd5 {[%emt 0:00:21]} 46. exd5 {[%emt 0:00:01]} Nb6 {[%emt 0:00:24]} 47. d6 {[%emt 0:02:18]} gxh4 {[%emt 0:00:41]} 48. gxh4 {[%emt 0:00:04]} Nd5 {[%emt 0:00:07] ...Nf4+ is the strong threat.} 49. Ke4 {[%emt 0:00:32]} Nf4 {[%emt 0:00:11]} 50. Kf5 {[%emt 0:00:03]} Ng2 {[%emt 0:00:21]} 51. Kxf6 {[%emt 0:00:19]} Nxh4 {[%emt 0:00:02]} 52. Bxh5 {[%emt 0:00:03]} Nc6 {[%emt 0:01:03]} (52... Nd7+ $142 53. Kf7 Nf5) 53. Bc5 {[%emt 0:00:42] Threatens to win with Bg4.} Nd4 {[%emt 0:00:38]} 54. Bg4 {[%emt 0:00:08] White mates.} Nc6 {[%emt 0:00:09]} 55. Bb6+ {[%emt 0:00:11]} Ke8 {[%emt 0:00:02]} 56. d7+ {[%emt 0:00:09]} Kf8 {[%emt 0:00:02]} 57. d8=Q+ {[%emt 0:00:09] Weighted Error Value: White=0.16 (very precise) /Black=0.41} (57. Be6 $142 Ng6 58. Bc5+ Nge7 59. Bxe7+ Nxe7 60. d8=Q#) 1-0

[Event "Czech Open-Rapid 2022"]
[Site "Pardubice"]
[Date "2022.07.21"]
[Round "5.11"]
[White "Michelle Catherina, P."]
[Black "Dobrowolski, Piotr"]
[Result "0-1"]
[ECO "B62"]
[WhiteElo "2141"]
[BlackElo "2423"]
[Annotator "TA"]
[PlyCount "68"]
[EventDate "2022.07.20"]
[EventType "swiss"]
[EventCountry "CZE"]
[SourceTitle "playchess.com"]
[Source "ChessBase"]
[SourceQuality "1"]
[TimeControl "1200+10"]

{[%evp 12,68,38,16,35,45,44,38,44,35,39,39,49,43,116,66,142,142,205,204,246,231,410,396,582,-464,-474,-475,-456,-457,-464,-479,-365,-465,-475,-524,-438,-832,-826,-1269,-1135,-1610,-1479,-2327,-1075,-29988,-29989,-29989,-29990,-29990,-29991,-29991,-1130,-29988,-29989,-29989,-29990,-29990,-29991]} 1. e4 {[%emt 0:00:07]} c5 {[%emt 0:00:03]} 2. Nf3 {[%emt 0:00:03]} Nc6 {[%emt 0:00:05]} 3. d4 {[%emt 0:00:35]} cxd4 {[%emt 0:00:04]} 4. Nxd4 {[%emt 0:00:02]} Nf6 {[%emt 0:00:07]} 5. Nc3 {[%emt 0:00:01]} d6 {[%emt 0:00:06]} 6. Bg5 {[%emt 0:00:11]} e6 {[%emt 0:00:05]} 7. Qd3 {[%emt 0:00:21]} Be7 {[%emt 0:00:22] 7...Bd7 is becoming the main line. B62: Sicilian: Richter-Rauzer: 6...e6: Unusual White 7th moves.} 8. O-O-O {[%emt 0:00:36]} a6 {[%emt 0:00:48]} 9. Nxc6 {[%emt 0:01:22]} bxc6 {[%emt 0:00:02] White is slightly better.} 10. Qg3 {[%emt 0:00:45] aiming for e5.} e5 {[%emt 0:04:39]} 11. Be2 {[%emt 0:04:35]} O-O {[%emt 0:01:18][%cal Of6h5] [#]} 12. f4 $146 {[%emt 0:00:30][%mdl 2048] White is pushing.} ({Predecessor:} 12. h4 Ne8 13. Kb1 Rb8 14. b3 Be6 15. Bc1 a5 16. h5 Rb4 17. h6 g6 18. f4 exf4 19. Qxf4 {1-0 (50) Dimov,D (2422)-Duchardt,A (2290) ICCF email 2015}) 12... Qa5 {[%emt 0:00:50]} ({Better is} 12... Ne8 $14) 13. Rhf1 {[%emt 0:02:23]} (13. fxe5 $1 $16 Qxe5 14. Bf4) 13... Kh8 {[%emt 0:01:40] [#]} ({Black should play} 13... exf4 $14 14. Bxf4 Ne8) 14. fxe5 $1 $16 {[%emt 0:00:47]} dxe5 {[%emt 0:01:01] [#]} (14... Qxe5 $16 {was worth a try.} 15. Bf4 Qe6) 15. Qh4 $1 $18 {[%emt 0:01:36][%cal Rf1f6] Hoping for Rxf6.} Rb8 {[%emt 0:00:48][%cal Oe7a3]} 16. Rxf6 {[%emt 0:02:19]} ({Stronger than} 16. Bxf6 gxf6 17. Bc4 Qc5 $11) 16... Rxb2 $2 {[%emt 0:00:01]} (16... Qb4) 17. Rxc6 {[%emt 0:02:00]} (17. Kxb2 $2 {leads to mate.} Ba3+ 18. Kb1 Qb4+ 19. Ka1 Qb2#) 17... Ba3 {[%emt 0:01:16]} (17... Bxg5+ $142 18. Qxg5 Qa3) 18. Be7 $4 {[%emt 0:01:50][%mdl 8192]} (18. Rd5 $18 {avoids the disaster.} Rb6+ 19. Kd2) 18... Rb6+ $19 {[%emt 0:00:27][%cal Bb2b6,Bb6c6,Bc6c7][%mdl 96] Discovered Attack} 19. Bxa3 {[%emt 0:01:17]} Qxa3+ {[%emt 0:00:05]} 20. Kd2 {[%emt 0:00:01]} Rxc6 {[%emt 0:00:08]} 21. Nd5 {[%emt 0:00:12]} Be6 {[%emt 0:00:38]} 22. Bd3 {[%emt 0:00:17]} Qxa2 {[%emt 0:01:19]} ({Avoid the trap} 22... Bxd5 $2 23. exd5 Rh6 24. Qe1 $19) 23. Ne7 {[%emt 0:01:11]} Rc7 {[%emt 0:01:06]} 24. Rf1 {[%emt 0:00:14]} (24. Nf5 $142 Bxf5 25. exf5) 24... Re8 {[%emt 0:00:53]} 25. Nd5 {[%emt 0:00:23]} Bxd5 {[%emt 0:00:31]} 26. exd5 {[%emt 0:00:05]} e4 {[%emt 0:00:21]} 27. Bxe4 {[%emt 0:00:16]} h6 {[%emt 0:00:20]} (27... Qa5+ $142 28. Kd1 Qa1+ 29. Kd2 Qd4+ 30. Kc1 Qe3+ 31. Kd1 Rxe4 32. Qd8+ Re8 33. Qxc7 Qe2+ 34. Kc1 Qxf1+ 35. Kb2 Qb5+ 36. Kc3 Qxd5) 28. d6 {[%emt 0:00:38]} Qa5+ {[%emt 0:00:15]} 29. Kd1 {[%emt 0:00:10]} Qa1+ {[%emt 0:00:38]} 30. Kd2 {[%emt 0:00:11]} Qd4+ {[%emt 0:00:12]} 31. Kc1 {[%emt 0:00:10]} Qxd6 {[%emt 0:00:20]} (31... Qe3+ $142 32. Kb1 Rc4 33. Bb7 Rxh4 34. g4 Rb8 35. Rxf7 Rxg4 36. Rc7 Rb4+ 37. Ka2 Qc1 38. Rc8+ Rxc8 39. Bxc8 Qb2#) 32. Rd1 {[%emt 0:00:09]} Qa3+ {[%emt 0:00:06] Black mates.} 33. Kd2 {[%emt 0:00:07]} Qc3+ {[%emt 0:00:44]} 34. Ke2 {[%emt 0:00:03]} Qxc2+ {[%emt 0:00:04] Never resign too early!  Weighted Error Value: White=1.25/Black=0.72} 0-1